fUST/lending_fUST_20250915
["ID","MTS","AMOUNT","RATE_DAILY","PERIOD"]
[385460270,1757866248074,-480.0,0.00022191,3]
[385460271,1757866248084,-1284.61,0.00022191,3]
[385460272,1757866248094,-480.0,0.00022191,3]
[385460273,1757866248103,-3435.65,0.00022191,3]
[385460274,1757866248115,-2228.74,0.00022191,3]
[385460275,1757866248124,-2558.53,0.00022191,3]
[385460276,1757866248133,-480.0,0.00022191,3]
[385460277,1757866248143,-1581.44,0.00022191,3]
[385460278,1757866248152,-1002.77,0.00022191,3]
[385460279,1757866248162,-803.17,0.00022191,3]
[385460280,1757866248171,-636.18,0.00022191,3]
[385460281,1757866248180,-676.43,0.00022191,3]
[385460282,1757866248190,-1054.75,0.00022191,3]
[385460283,1757866248199,-1325.47,0.00022191,3]
[385460284,1757866248208,-955.92,0.00022191,3]
[385460285,1757866248218,-480.0,0.00022191,3]
[385460286,1757866248227,-480.0,0.00022191,3]
[385460287,1757866248236,-779.33,0.00022191,3]
[385460288,1757866248246,-480.0,0.00022191,3]
[385460289,1757866248255,-1885.35,0.00022191,3]
[385460290,1757866248264,-480.0,0.00022191,3]
[385460291,1757866248274,-2659.74,0.00022191,3]
[385460292,1757866248283,-728.35,0.00022191,3]
[385460293,1757866248293,-480.0,0.00022191,3]
[385460294,1757866248303,-480.0,0.00022191,3]
[385460295,1757866248313,-1042.64,0.00022191,3]
[385460296,1757866248322,-480.0,0.00022191,2]
[385460297,1757866248332,-480.0,0.00022191,3]
[385460298,1757866248342,-480.0,0.00022191,3]
[385460299,1757866248352,-703.37,0.00022191,3]
[385460300,1757866248362,-480.0,0.00022191,3]
[385460301,1757866248371,-11868.37,0.00022191,3]
[385460302,1757866248381,-642.99,0.00022191,3]
[385460303,1757866248390,-480.0,0.00022191,3]
[385460304,1757866248399,-480.0,0.00022191,3]
[385460305,1757866248409,-1266.12,0.00022191,3]
[385460306,1757866248418,-480.0,0.00022191,3]
[385460307,1757866248427,-857.34,0.00022191,3]
[385460308,1757866248436,-500.11957811,0.00022191,3]
[385460309,1757866248446,-529.96,0.00022191,3]
[385460310,1757866248455,-1990.62,0.00022191,3]
[385460311,1757866248465,-480.0,0.00022191,3]
[385460312,1757866248474,-480.0,0.00022191,3]
[385460313,1757866248483,-482.45430888,0.00022191,3]
[385460314,1757866248493,-1305.74,0.00022191,3]
[385460315,1757866248502,-996.01,0.00022191,3]
[385460316,1757866248512,-5765.29,0.00022191,3]
[385460317,1757866248521,-2404.14,0.00022191,3]
[385460318,1757866248530,-480.0,0.00022191,3]
[385460319,1757866248539,-736.61,0.00022191,3]
[385460320,1757866248548,-1123.73,0.00022191,3]
[385460321,1757866248558,-151.0,0.00022191,7]
[385460322,1757866248567,-2592.64,0.00022191,3]
[385460323,1757866248576,-480.0,0.00022191,3]
[385460324,1757866248586,-480.0,0.00022191,3]
[385460325,1757866248595,-710.2,0.00022191,3]
[385460326,1757866248604,-1198.22,0.00022191,3]
[385460327,1757866248614,-2510.57,0.00022191,3]
[385460328,1757866248623,-480.0,0.00022191,3]
[385460329,1757866248633,-480.0,0.00022191,3]
[385460330,1757866248642,-572.67,0.00022191,3]
[385460331,1757866248652,-480.0,0.00022191,3]
[385460332,1757866248661,-480.0,0.00022191,3]
[385460333,1757866248671,-4914.65,0.00022191,3]
[385460334,1757866248680,-966.17,0.00022191,3]
[385460335,1757866248690,-582.41,0.00022191,3]
[385460336,1757866248699,-480.0,0.00022191,3]
[385460337,1757866248709,-1685.61,0.00022191,3]
[385460338,1757866248718,-480.0,0.00022191,3]
[385460339,1757866248728,-485.87198525,0.00022191,3]
[385460340,1757866248738,-740.45,0.00022191,3]
[385460341,1757866248747,-480.0,0.00022191,3]
[385460342,1757866248757,-480.0,0.00022191,3]
[385460343,1757866248767,-1009.52,0.00022191,3]
[385460344,1757866248776,-480.0,0.00022191,3]
[385460345,1757866248785,-442.19906303,0.00022191,3]
[385460346,1757866248794,-480.0,0.00022191,3]
[385460347,1757866248803,-2169.84,0.00022191,3]
[385460348,1757866248813,-480.0,0.00022191,3]
[385460349,1757866248823,-480.0,0.00022191,3]
[385460350,1757866248832,-480.0,0.00022191,3]
[385460351,1757866248841,-623.07617974,0.00022191,3]
[385460352,1757866248851,-480.0,0.00022191,3]
[385460353,1757866248860,-480.0,0.00022191,3]
[385460354,1757866248869,-480.0,0.00022191,3]
[385460355,1757866248879,-480.0,0.00022191,3]
[385460356,1757866248888,-480.0,0.00022191,3]
[385460357,1757866248898,-706.41,0.00022191,3]
[385460358,1757866248910,-480.0,0.00022191,3]
[385460359,1757866248920,-151.0,0.00022191,7]
[385460360,1757866248929,-990.26,0.00022191,3]
[385460361,1757866248939,-151.0,0.00022191,7]
[385460362,1757866248948,-480.0,0.00022191,3]
[385460363,1757866248958,-151.0,0.00022191,7]
[385460364,1757866248967,-1276.96,0.00022191,3]
[385460365,1757866248977,-457.787272,0.00022191,3]
[385460366,1757866248986,-151.0,0.00022191,7]
[385460367,1757866248996,-151.0,0.00022191,7]
[385460368,1757866249005,-151.0,0.00022191,7]
[385460369,1757866249015,-480.0,0.00022191,3]
[385460370,1757866249025,-893.72,0.00022191,3]
[385460371,1757866249037,-159.366818,0.00022191,7]
[385460372,1757866249047,-300.0,0.00022191,2]
[385460373,1757866249057,-480.0,0.00022191,3]
[385460374,1757866249066,-164.92426994,0.000222,2]
[385460375,1757866249076,-594.5475432,0.00022204,2]
[385460376,1757866249086,-600.0,0.00022251,20]
[385460377,1757866249095,-151.0,0.000223,9]
[385460378,1757866249104,-151.0,0.000223,8]
[385460379,1757866249114,-980.128,0.0002235,2]
[385460380,1757866249123,-2156.0,0.0002235,2]
[385460381,1757866249134,-640.564,0.0002235,2]
[385460382,1757866249143,-380.9807829,0.00022355,2]
[385460383,1757866249152,-1301.40014617,0.00022398,2]
[385460384,1757866249162,-164.92426994,0.000224,2]
[385460385,1757866249171,-3000.0,0.000224,2]
[385460386,1757866249181,-151.0,0.000224,7]
[385460387,1757866249190,-3000.0,0.0002241,2]
[385460388,1757866249200,-3000.0,0.0002242,2]
[385460389,1757866249210,-500.0,0.00022421,2]
[385460390,1757866249219,-1000.0,0.00022421,2]
[385460391,1757866249230,-373.62411309,0.00022421,2]
[385460392,1757866249239,-1000.0,0.00022421,2]
[385460393,1757866249248,-1000.0,0.00022421,2]
[385460394,1757866249259,-1000.0,0.00022421,2]
[385460395,1757866249268,-500.0,0.00022421,2]
[385460396,1757866249277,-501.52711983,0.00022421,2]
[385460397,1757866249287,-504.93964804,0.00022421,2]
[385460398,1757866249296,-503.45708895,0.00022421,2]
[385460399,1757866249305,-1000.0,0.00022421,2]
[385460400,1757866249319,-73.82306236,0.00022421,2]
[385460401,1757866249495,-926.17693764,0.00022421,2]
[385460402,1757866249505,-1000.0,0.00022421,2]
[385460403,1757866249516,-500.0,0.00022421,2]
[385460404,1757866249525,-1110.0,0.00022421,2]
[385460405,1757866249534,-151.0,0.00022421,2]
[385460406,1757866249543,-382.64016978,0.00022421,2]
[385460407,1757866249552,-500.0,0.00022421,2]
[385460408,1757866249561,-246.97757122,0.00022421,2]
[385460409,1757866249571,-219.02705941,0.00022421,2]
[385460410,1757866249580,-254.20433611,0.00022421,2]
[385460411,1757866249590,-412.33140433,0.00022421,2]
[385460412,1757866249599,-500.0,0.00022421,2]
[385460413,1757866249609,-151.0,0.00022421,2]
[385460414,1757866249618,-248.0918819,0.00022421,2]
[385460415,1757866249628,-192.4832997,0.00022421,2]
[385460416,1757866249637,-151.0,0.00022421,2]
[385460417,1757866249647,-500.0,0.00022421,2]
[385460418,1757866249656,-500.0,0.00022421,2]
[385460419,1757866249665,-500.0,0.00022421,2]
[385460420,1757866249674,-520.7586789,0.00022421,2]
[385460421,1757866249684,-2083.03471558,0.00022421,2]
[385460422,1757866249694,-1540.58467963,0.00022421,2]
[385460423,1757866249705,-3141.55660232,0.00022421,2]
[385460424,1757866249714,-3000.0,0.0002243,2]
[385460425,1757866249724,-569.56485905,0.00022434,2]
[385460426,1757866249733,-2275.98117676,0.00022434,2]
[385460427,1757866249743,-219.51,0.00022435,2]
[385460428,1757866249752,-192.83171359,0.0002244,2]
[385460429,1757866249765,-471.54538709,0.0002244,2]
[385460430,1757866249776,-900.67165588,0.0002244,2]
[385460431,1757866249787,-1434.95124344,0.0002244,2]
[385460432,1757866249796,-356.83221627,0.0002245,2]
[385460433,1757866249808,-2470.6695693,0.0002245,2]
[385460434,1757866250124,-480.0,0.00021917,2]
[385460435,1757866250133,-27.34145989,0.00022191,2]
[385460436,1757866250696,-151.0,0.00021917,2]
[385460437,1757866250705,-307.5,0.00022191,2]
[385460438,1757866295181,156.393861,0.00024,30]
[385460439,1757866300054,152.258297,0.00024,30]
[385460440,1757866416391,1514.00215648,0.000199,2]
[385460441,1757866597987,1463.53541795,0.000199,2]
[385460442,1757866779761,1414.75090397,0.000199,2]
[385460443,1757866846122,152.258297,0.00024,30]
[385460444,1757866887017,-666.0,0.00020599,2]
[385460445,1757866887045,-531.25893679,0.00020615,2]
[385460446,1757866887075,-447.950607,0.00020715,2]
[385460447,1757866887105,-1000.0,0.0002078,2]
[385460448,1757866887138,-1414.75090394,0.00021149,2]
[385460449,1757866887168,-653.35893514,0.00021202,2]
[385460450,1757866887329,-573.37123426,0.00021202,2]
[385460451,1757866887358,-531.25893679,0.00021216,2]
[385460452,1757866887387,-300.0,0.00021615,2]
[385460453,1757866887415,-815.66189291,0.00021616,2]
[385460454,1757866887727,-6385.73669512,0.00021714,2]
[385460455,1757866887757,-10000.01,0.00021714,2]
[385460456,1757866897060,-10000.01,0.00021714,2]
[385460457,1757866897225,-3717.84863257,0.00021714,2]
[385460458,1757866897248,-2564.31273486,0.00021714,2]
[385460459,1757866965134,1320.42677308,0.000199,2]
[385460461,1757867149300,1277.14553852,0.000199,2]
[385460467,1757867262772,-300.0,0.0002069,2]
[385460468,1757867262833,-6802.4376884,0.00020691,2]
[385460469,1757867262896,-3197.5623116,0.00020691,2]
[385460470,1757867262926,-184.38767,0.00020755,2]
[385460471,1757867262961,-1277.14553836,0.00021149,2]
[385460472,1757867263025,-681.81896008,0.000215,2]
[385460473,1757867268869,69331.9161344,0.00018,2]
[385460474,1757867282779,-10000.01,0.000215,2]
[385460475,1757867285260,3752.07988892,0.000237,30]
[385460477,1757867302751,2101.90595654,0.000176,2]
[385460478,1757867311806,7898.10404346,0.00017,2]
[385460479,1757867311828,10000.01,0.00017,2]
[385460480,1757867311851,10000.01,0.00017,2]
[385460481,1757867311873,10000.01,0.00017,2]
[385460482,1757867311894,10000.01,0.00017,2]
[385460483,1757867311916,10000.01,0.00017,2]
[385460484,1757867311939,10000.01,0.00017,2]
[385460485,1757867311960,6403.42890808,0.00017,2]
[385460486,1757867316657,300.0,0.00017339,2]
[385460487,1757867316937,3296.58109192,0.00018,2]
[385460488,1757867316959,7970.24255558,0.00018,2]
[385460489,1757867317140,300.0,0.00017339,2]
[385460490,1757867317622,300.0,0.00017339,2]
[385460491,1757867318090,300.0,0.00017339,2]
[385460492,1757867318570,300.0,0.00017339,2]
[385460493,1757867319679,300.0,0.00017339,2]
[385460494,1757867320113,529.76744442,0.0002,2]
[385460495,1757867320136,1506.73661647,0.0002,2]
[385460496,1757867320215,300.0,0.00017339,2]
[385460497,1757867320729,300.0,0.00017339,2]
[385460498,1757867321208,300.0,0.00017339,2]
[385460502,1757867321783,300.0,0.00017339,2]
[385460503,1757867322309,300.0,0.00017339,2]
[385460504,1757867322782,300.0,0.00017339,2]
[385460505,1757867323349,300.0,0.00017339,2]
[385460506,1757867323376,6393.27338353,0.00014,2]
[385460507,1757867323398,10000.01,0.00014,2]
[385460508,1757867323420,10000.01,0.00014,2]
[385460509,1757867323441,10000.01,0.00014,2]
[385460510,1757867323463,10000.01,0.00014,2]
[385460511,1757867323485,10000.01,0.00014,2]
[385460512,1757867323507,10000.01,0.00014,2]
[385460513,1757867323528,10000.01,0.00014,2]
[385460514,1757867323554,82.92321463,0.00014,2]
[385460515,1757867323582,23166.35869784,0.00014,2]
[385460516,1757867323610,6533.65417204,0.00024,30]
[385460517,1757867323738,300.0,0.00017339,2]
[385460518,1757867324207,300.0,0.00017339,2]
[385460519,1757867345179,1583.92839268,0.000199,2]
[385460599,1757867437895,-783.65300744,0.00020376,2]
[385460606,1757867437950,-736.12090922,0.00020376,2]
[385460627,1757867438150,-2490.46205682,0.00020376,2]
[385460631,1757867438179,-265.6294684,0.00020482,2]
[385460635,1757867438213,-1200.0,0.00020581,2]
[385460650,1757867438370,-5000.0,0.00020582,2]
[385460801,1757867439960,-300.0,0.00020789,2]
[385460802,1757867439970,-300.0,0.00020789,2]
[385460805,1757867439979,-300.0,0.00020789,2]
[385460807,1757867439989,-300.0,0.00020789,2]
[385460808,1757867439997,-5000.0,0.0002079,2]
[385460810,1757867440006,-543.77459528,0.00020899,2]
[385460812,1757867440015,-500.0,0.00020989,2]
[385460814,1757867440025,-500.0,0.00020989,2]
[385460816,1757867440034,-218.62072068,0.00020989,2]
[385460818,1757867440043,-254.16460795,0.00020989,2]
[385460820,1757867440053,-500.0,0.00020989,2]
[385460822,1757867440062,-500.0,0.00020989,2]
[385460824,1757867440071,-376.63325683,0.00020989,2]
[385460826,1757867440080,-500.0,0.00020989,2]
[385460828,1757867440089,-500.0,0.00020989,2]
[385460830,1757867440098,-500.0,0.00020989,2]
[385460832,1757867440107,-500.0,0.00020989,2]
[385460834,1757867440117,-500.0,0.00020989,2]
[385460836,1757867440126,-39036.5237356,0.0002099,2]
[385460838,1757867440135,-150.999999,0.00021,2]
[385460840,1757867440144,-634.28308466,0.00021149,2]
[385461075,1757867443325,152.258297,0.00024,30]
[385462596,1757867520616,16247.62503279,0.00030378,120]
[385462597,1757867524990,900.0,0.0002012,2]
[385462598,1757867527243,2056.99169927,0.000199,2]
[385462599,1757867545632,300.0,0.0002012,2]
[385462600,1757867590652,890.7809152,0.00020082,2]
[385462601,1757867632834,477.89677534,0.00020107,2]
[385462602,1757867639201,5000.0,0.0002012,2]
[385462603,1757867648061,374.34061019,0.0002012,2]
[385462604,1757867648083,4625.65938981,0.0002012,2]
[385462605,1757867664144,5000.0,0.0002012,2]
[385462606,1757867672684,374.35061019,0.0002012,2]
[385462607,1757867672708,4625.64938981,0.0002012,2]
[385462610,1757867689246,5000.0,0.0002012,2]
[385462611,1757867697236,374.36061019,0.0002012,2]
[385462612,1757867697258,4625.63938981,0.0002012,2]
[385462613,1757867713222,5000.0,0.0002012,2]
[385462614,1757867713298,374.37061019,0.000199,2]
[385462615,1757867713323,1613.48015482,0.000199,2]
[385462617,1757867735641,2000.0,0.0002012,2]
[385462620,1757867856731,1000.0,0.00030378,120]
[385462621,1757867903213,1978.46896458,0.000199,2]
[385462624,1757867989304,-223.975303,0.00020198,2]
[385462625,1757867989334,-1000.0,0.00020287,2]
[385462626,1757867989366,-200.88149034,0.00020628,2]
[385462627,1757867989395,-160.0,0.0002072,2]
[385462628,1757867989426,-1200.0,0.00020988,2]
[385462629,1757867989455,-300.0,0.00020988,2]
[385462630,1757867989487,-300.0,0.00020989,2]
[385462631,1757867989519,-300.0,0.00020989,2]
[385462632,1757867989548,-1200.0,0.00020989,2]
[385462635,1757868011397,-265.62946839,0.0002089,2]
[385462636,1757868011431,-300.0,0.00020989,2]
[385462637,1757868011463,-1200.0,0.00020989,2]
[385462638,1757868011493,-300.0,0.00020989,2]
[385462639,1757868011528,-300.0,0.00020989,2]
[385462640,1757868011564,-300.0,0.00020989,2]
[385462641,1757868019486,-4337.06371864,0.0002099,2]
[385462642,1757868029414,-4337.06371864,0.0002099,2]
[385462643,1757868029438,-1325.88256272,0.0002099,2]
[385462645,1757868039371,-442.75830374,0.0002099,2]
[385462646,1757868039399,-843.48672457,0.00021039,2]
[385462647,1757868039431,-1978.46896435,0.00021149,2]
[385462648,1757868039499,-3470.58201468,0.00021156,2]
[385462649,1757868044445,152.258297,0.00024,30]
[385462650,1757868090745,1904.33538999,0.000199,2]
[385462655,1757868264522,5000.0,0.0002012,2]
[385462656,1757868270573,1875.43872107,0.000199,2]
[385462657,1757868286674,1220.23588894,0.0002012,2]
[385462658,1757868286696,3779.76411106,0.0002012,2]
[385462659,1757868294497,1551.91677143,0.0002012,2]
[385462660,1757868310920,665.82216173,0.0002012,2]
[385462662,1757868452240,1885.76152824,0.000199,2]
[385462663,1757868467470,2116.74542754,0.0002012,2]
[385462664,1757868467493,2383.25457246,0.0002012,2]
[385462676,1757868632300,-187.983076,0.00020192,2]
[385462677,1757868632310,-160.0,0.00020934,2]
[385462678,1757868632320,-115.68069198,0.00021103,2]
[385462679,1757868632354,-1542.37057378,0.00021103,2]
[385462680,1757868632364,-362.51639686,0.00021103,2]
[385462681,1757868632374,-300.0,0.00021154,2]
[385462682,1757868632385,-1200.0,0.00021155,2]
[385462683,1757868632394,-1200.0,0.00021155,2]
[385462684,1757868632405,-300.0,0.00021155,2]
[385462685,1757868632414,-17646.2585303,0.00021156,2]
[385462690,1757868636126,1822.9028104,0.000199,2]
[385462691,1757868638296,-1822.90281039,0.00021149,2]
[385462692,1757868638305,-13909.73415462,0.00021156,2]
[385462693,1757868638315,-500.0,0.00021202,2]
[385462694,1757868638323,-486.29258409,0.00021202,2]
[385462695,1757868638333,-15740.6556972,0.00021203,2]
[385462696,1757868638342,-300.0,0.00021205,20]
[385462697,1757868638351,-300.0,0.00021205,20]
[385462698,1757868638361,-300.0,0.00021205,20]
[385462699,1757868638370,-300.0,0.00021205,20]
[385462700,1757868638379,-300.0,0.00021205,20]
[385462701,1757868638388,-300.0,0.00021205,20]
[385462702,1757868638398,-300.0,0.00021205,20]
[385462703,1757868638407,-300.0,0.00021205,20]
[385462704,1757868638417,-300.0,0.00021205,20]
[385462705,1757868638426,-300.0,0.00021205,20]
[385462706,1757868638435,-300.0,0.00021205,20]
[385462707,1757868638445,-300.0,0.00021205,20]
[385462708,1757868638454,-300.0,0.00021205,20]
[385462709,1757868638463,-300.0,0.00021205,20]
[385462710,1757868638472,-300.0,0.00021205,20]
[385462711,1757868638482,-1038.71842588,0.000213,2]
[385462712,1757868638491,-362.51639684,0.00021319,2]
[385462713,1757868638501,-5332.10913764,0.000215,2]
[385462714,1757868638510,-362.51639684,0.00021535,2]
[385462715,1757868638519,-423.88,0.00021594,10]
[385462716,1757868638528,-151.0,0.00021604,2]
[385462717,1757868638537,-151.0,0.00021604,2]
[385462718,1757868638546,-154.01790939,0.00021604,2]
[385462719,1757868638555,-7195.7435654,0.00021604,2]
[385462720,1757868638565,-250.0,0.00021604,2]
[385462721,1757868638575,-151.0,0.00021604,2]
[385462722,1757868638584,-250.0,0.00021604,2]
[385462723,1757868638593,-250.0,0.00021604,2]
[385462724,1757868638602,-250.0,0.00021604,2]
[385462725,1757868638611,-250.0,0.00021604,2]
[385462726,1757868638621,-250.0,0.00021604,2]
[385462727,1757868638630,-151.0,0.00021604,2]
[385462728,1757868638640,-250.0,0.00021604,2]
[385462729,1757868638650,-151.0,0.00021604,2]
[385462730,1757868638658,-250.0,0.00021604,2]
[385462731,1757868638671,-151.0,0.00021604,2]
[385462732,1757868638680,-250.0,0.00021604,2]
[385462733,1757868638689,-308.3926338,0.00021604,2]
[385462734,1757868638698,-202.50353211,0.00021604,2]
[385462735,1757868638707,-162.380719,0.00021604,2]
[385462736,1757868638717,-1000.0,0.00021604,2]
[385462737,1757868638726,-1000.0,0.00021604,2]
[385462738,1757868638735,-1000.0,0.00021604,2]
[385462739,1757868638744,-1000.0,0.00021604,2]
[385462740,1757868638754,-1000.0,0.00021604,2]
[385462741,1757868638763,-1000.0,0.00021604,2]
[385462742,1757868638772,-1000.0,0.00021604,2]
[385462743,1757868638781,-1000.0,0.00021604,2]
[385462744,1757868638790,-1000.0,0.00021604,2]
[385462745,1757868638799,-1000.0,0.00021604,2]
[385462746,1757868638808,-1000.0,0.00021604,2]
[385462747,1757868638818,-1000.0,0.00021604,2]
[385462748,1757868638827,-1000.0,0.00021604,2]
[385462749,1757868638836,-1000.0,0.00021604,2]
[385462750,1757868638846,-1000.0,0.00021604,2]
[385462751,1757868638856,-1000.0,0.00021604,2]
[385462752,1757868638865,-1000.0,0.00021604,2]
[385462753,1757868638875,-500.0,0.00021605,2]
[385462754,1757868638884,-638.55405454,0.00021605,2]
[385462755,1757868638894,-500.0,0.00021605,2]
[385462756,1757868638903,-330.3964442,0.00021605,2]
[385462757,1757868638912,-500.0,0.00021605,2]
[385462758,1757868638921,-500.0,0.00021605,2]
[385462759,1757868638931,-500.0,0.00021605,2]
[385462760,1757868638940,-500.0,0.00021605,2]
[385462761,1757868638949,-500.0,0.00021605,2]
[385462762,1757868638959,-500.0,0.00021605,2]
[385462763,1757868638968,-500.0,0.00021605,2]
[385462764,1757868638977,-500.0,0.00021605,2]
[385462765,1757868638987,-500.0,0.00021605,2]
[385462766,1757868638995,-170.59860066,0.00021605,2]
[385462767,1757868639004,-1083.8,0.00021607,3]
[385462768,1757868639014,-541.9,0.00021607,3]
[385462769,1757868639023,-270.95,0.00021607,3]
[385462770,1757868639033,-812.89,0.00021607,3]
[385462771,1757868639042,-500.0,0.00021616,2]
[385462772,1757868639051,-8886.34453448,0.00021617,2]
[385462773,1757868639060,-370000.0,0.00021617,2]
[385462774,1757868639070,-237.0,0.00021635,2]
[385462775,1757868639079,-500.0,0.00021673,2]
[385462776,1757868639088,-501.52711983,0.00021673,2]
[385462777,1757868639098,-501.91968373,0.00021673,2]
[385462778,1757868639108,-500.0,0.00021673,2]
[385462779,1757868639118,-500.2014928,0.00021673,2]
[385462780,1757868639127,-500.0,0.00021673,2]
[385462781,1757868639136,-500.0,0.00021673,2]
[385462782,1757868639145,-512.0774334,0.00021673,2]
[385462783,1757868639154,-500.0,0.00021673,2]
[385462784,1757868639164,-503.27858316,0.00021673,2]
[385462785,1757868639174,-504.85035705,0.00021673,2]
[385462786,1757868639183,-500.0,0.00021673,2]
[385462787,1757868639192,-500.0,0.00021673,2]
[385462788,1757868639202,-298.49901242,0.00021673,2]
[385462789,1757868639211,-500.0,0.00021673,2]
[385462790,1757868639220,-500.0,0.00021673,2]
[385462791,1757868639230,-500.0,0.00021673,2]
[385462792,1757868639239,-500.0,0.00021673,2]
[385462793,1757868639247,-500.0,0.00021673,2]
[385462794,1757868639257,-500.0,0.00021673,2]
[385462795,1757868639267,-501.39610641,0.00021673,2]
[385462796,1757868639276,-500.0,0.00021673,2]
[385462797,1757868639285,-500.0,0.00021673,2]
[385462798,1757868639294,-500.0,0.00021673,2]
[385462799,1757868639304,-500.0,0.00021673,2]
[385462800,1757868639314,-500.0,0.00021673,2]
[385462801,1757868639323,-500.0,0.00021673,2]
[385462802,1757868639333,-500.0,0.00021673,2]
[385462803,1757868639342,-500.0,0.00021673,2]
[385462804,1757868639352,-471.41848639,0.00021673,2]
[385462805,1757868639361,-500.0,0.00021673,2]
[385462806,1757868639370,-500.0,0.00021673,2]
[385462807,1757868639382,-500.0,0.00021673,2]
[385462808,1757868639391,-482.70043447,0.00021673,2]
[385462809,1757868639401,-500.38140165,0.00021673,2]
[385462810,1757868639411,-501.18299892,0.00021673,2]
[385462811,1757868639420,-500.0,0.00021673,2]
[385462812,1757868639430,-500.0,0.00021673,2]
[385462813,1757868639439,-500.0,0.00021673,2]
[385462814,1757868639448,-500.0,0.00021673,2]
[385462815,1757868639467,-500.0,0.00021673,2]
[385462816,1757868639477,-7369.5957479,0.00021693,2]
[385462817,1757868639486,-237.0,0.00021725,2]
[385462818,1757868639495,-11244.14788408,0.00021815,2]
[385462819,1757868639505,-200.0,0.00021816,2]
[385462820,1757868639514,-251.89630539,0.00021816,5]
[385462821,1757868639523,-847.27885267,0.00021829,2]
[385462822,1757868639533,-160.0,0.00021829,2]
[385462823,1757868639547,-160.0,0.00021829,2]
[385462824,1757868639561,-160.0,0.00021829,2]
[385462825,1757868639570,-217.77739939,0.00021829,2]
[385462826,1757868639579,-233.1999649,0.00021829,2]
[385462827,1757868639589,-237.0,0.00021849,2]
[385462828,1757868639599,-216.0,0.00021856,2]
[385462829,1757868639608,-237.0,0.00021865,2]
[385462830,1757868639617,-500.0,0.0002189,2]
[385462831,1757868639627,-237.0,0.00021902,2]
[385462832,1757868639636,-155.462,0.00021916,2]
[385462833,1757868639646,-155.0,0.00021916,2]
[385462835,1757868639655,-480.0,0.00021917,2]
[385462837,1757868639667,-800.9,0.00021917,2]
[385462839,1757868639677,-480.0,0.00021917,2]
[385462840,1757868639686,-165.11394765,0.00021917,2]
[385462841,1757868639695,-480.0,0.00021917,2]
[385462842,1757868639704,-459.80038483,0.00021917,2]
[385462843,1757868639715,-480.0,0.00021917,2]
[385462844,1757868639725,-480.0,0.00021917,2]
[385462845,1757868639735,-480.0,0.00021917,2]
[385462846,1757868639745,-480.0,0.00021917,2]
[385462847,1757868639755,-551.21201223,0.00021917,2]
[385462849,1757868639764,-192.53901039,0.00021917,2]
[385462850,1757868639773,-480.0,0.00021917,2]
[385462853,1757868639782,-480.50717502,0.00021917,2]
[385462855,1757868639792,-481.45806789,0.00021917,2]
[385462857,1757868639801,-480.0,0.00021917,2]
[385462859,1757868639811,-480.0,0.00021917,2]
[385462861,1757868639820,-520.0,0.00021917,3]
[385462863,1757868639830,-480.0,0.00021917,2]
[385462864,1757868639840,-480.0,0.00021917,2]
[385462866,1757868639849,-480.0,0.00021917,2]
[385462868,1757868639859,-480.0,0.00021917,2]
[385462870,1757868639867,-480.0,0.00021917,2]
[385462872,1757868639877,-432.18291645,0.00021917,2]